bitfinex-derivatives/quotes_SOLF0:USTF0_20240830
["timestamp","ask_amount","ask_price","bid_price","bid_amount"]
[1725042555549,3.71665125,136.38,136.35,0.05523292]
[1725042555848,0.04975125,136.38,136.35,0.05523292]
[1725042556436,0.04975125,136.38,136.35,3.72273292]
[1725042556638,0.04975125,136.38,136.35,0.05523292]
[1725042557542,3.71665125,136.38,136.35,0.05523292]
[1725042559543,0.04975125,136.38,136.35,0.05523292]
[1725042560141,0.04975125,136.38,136.35,3.72263292]
[1725042560652,0.04975125,136.38,136.36,3.6672]
[1725042560847,3.6673,136.36,136.35,0.05523292]
[1725042563963,0.04975125,136.38,136.35,0.05523292]
[1725042564755,0.04975125,136.38,136.35,3.72253292]
[1725042565150,0.04975125,136.38,136.36,3.6673]
[1725042565454,0.04975125,136.38,136.35,0.05523292]
[1725042565455,0.04975125,136.38,136.35,35.31523292]
[1725042566853,0.04975125,136.38,136.37,3.667]
[1725042567054,0.04975125,136.38,136.35,36.65233292]
[1725042567547,0.04975125,136.38,136.36,3.667]
[1725042567850,0.04975125,136.38,136.35,36.65233292]
[1725042568250,1.3131,136.44,136.37,35.26]
[1725042568451,2.7963,136.47,136.37,35.26]
[1725042568653,4.1874,136.47,136.37,35.26]
[1725042568849,3.6657,136.42,136.37,35.26]
[1725042569347,0.04649484,136.41,136.38,0.05408178]
[1725042569749,3.80283572,136.41,136.38,0.05408178]
[1725042569958,3.6665,136.39,136.38,0.05408178]
[1725042570154,7.35575027,136.39,136.38,0.05408178]
[1725042570354,3.6665,136.39,136.38,0.05408178]
[1725042570547,3.64269012,136.4,136.38,0.05408178]
[1725042572150,0.04649484,136.41,136.38,0.05408178]
[1725042572850,3.71249484,136.41,136.38,0.05408178]
[1725042573054,0.04649484,136.41,136.38,0.05408178]
[1725042573452,3.71239484,136.41,136.38,0.05408178]
[1725042574056,0.04649484,136.41,136.38,0.05408178]
[1725042574261,0.04649484,136.41,136.4,3.6662]
[1725042574765,0.04649484,136.41,136.38,0.05408178]
[1725042575065,0.04649484,136.41,136.39,35.26]
[1725042575266,3.74166875,136.46,136.42,35.26]
[1725042575462,0.42059083,136.48,136.43,3.6651]
[1725042576155,0.04482238,136.47,136.44,0.04977872]
[1725042576557,0.04482238,136.47,136.45,35.26]
[1725042577008,7.31429099,136.52,136.49,3.6637]
[1725042577360,7.31429099,136.52,136.46,1.3304]
[1725042577564,7.31429099,136.52,136.44,38.9251]
[1725042577761,7.31429099,136.52,136.41,93.39795669]
[1725042577762,42.57429099,136.52,136.42,1.3304]
[1725042577965,42.57429099,136.52,136.4,5.03773035]
[1725042577966,35.26,136.5,136.47,0.0527691]
[1725042578264,35.26,136.48,136.38,35.26]
[1725042578465,7.95030751,136.51,136.38,35.26]
[1725042578671,43.21030751,136.51,136.41,35.26]
[1725042578854,43.21030751,136.51,136.39,35.26]
[1725042578855,35.26,136.48,136.39,35.26]
[1725042579095,0.04869417,136.45,136.42,0.05149258]
[1725042579264,3.75239916,136.44,136.42,0.05462559]
[1725042579871,2.89529889,136.45,136.42,0.05462559]
[1725042580161,3.6654,136.43,136.42,0.05462559]
[1725042580368,3.68577695,136.43,136.34,1.3304]
[1725042580564,3.6663,136.4,136.34,4.998]
[1725042580955,35.26,136.41,136.34,1.3304]
[1725042581461,0.04987416,136.39,136.36,0.04785577]
[1725042582265,35.26,136.49,136.38,35.26]
[1725042582465,35.26,136.49,136.4,35.26]
[1725042582663,38.9109536,136.49,136.4,35.26]
[1725042582864,3.6647,136.46,136.4,38.926]
[1725042583171,3.6647,136.46,136.36,1.3879]
[1725042583172,3.6509536,136.49,136.42,35.26]
[1725042583471,0.04770173,136.47,136.42,35.31024945]
[1725042583771,0.04770173,136.47,136.43,0.04824381]
[1725042584969,3.71210173,136.47,136.43,0.04824381]
[1725042585172,0.04770173,136.47,136.43,0.04824381]
[1725042586566,1.3647,136.53,136.43,0.04824381]
[1725042586781,2.8334,136.57,136.49,35.26]
[1725042586971,3.66590964,136.55,136.49,35.26]
[1725042587173,3.6625,136.54,136.49,35.26]
[1725042587470,3.73664048,136.56,136.49,35.31444978]
[1725042587672,3.6628,136.53,136.49,0.05444978]
[1725042587980,38.99664048,136.56,136.49,0.05444978]
[1725042588168,3.73664048,136.56,136.49,0.05444978]
[1725042589071,35.26,136.55,136.49,0.05444978]
[1725042589375,3.6634,136.51,136.49,0.05444978]
[1725042589568,35.26,136.55,136.49,0.05444978]
[1725042590175,3.73664048,136.56,136.49,0.05444978]
[1725042590475,3.6624,136.55,136.49,3.71794978]
[1725042590685,3.73664048,136.56,136.49,0.05444978]
[1725042590871,10.97739099,136.52,136.49,0.05444978]
[1725042591379,7.31429099,136.52,136.49,0.05444978]
[1725042593181,7.31429099,136.52,136.49,3.71814978]
[1725042593372,7.31429099,136.52,136.49,0.05444978]
[1725042593573,0.82709099,136.52,136.51,35.26]
[1725042593978,0.82709099,136.52,136.51,38.9232]
[1725042594286,0.82709099,136.52,136.49,0.05444978]
[1725042594675,0.82709099,136.52,136.5,3.6635]
[1725042595478,0.82709099,136.52,136.51,3.6632]
[1725042596172,0.82709099,136.52,136.51,38.9232]
[1725042596373,4.2428,136.6,136.54,3.6622]
[1725042596568,4.2428,136.6,136.56,0.04634322]
[1725042596879,3.6613,136.59,136.56,0.04634322]
[1725042597178,4.2428,136.6,136.56,0.04634322]
[1725042597378,4.10784397,136.61,136.56,0.04634322]
[1725042597580,0.44704397,136.61,136.56,0.04634322]
[1725042597978,4.10764397,136.61,136.56,0.04634322]
[1725042598169,0.44704397,136.61,136.56,35.30634322]
[1725042599483,0.44704397,136.61,136.58,35.26]
[1725042599679,0.44704397,136.61,136.59,3.6611]
[1725042600180,0.44704397,136.61,136.58,35.26]
[1725042600780,0.52820948,136.65,136.6,35.31278821]
[1725042601130,35.26,136.68,136.6,0.05278821]
[1725042601379,1.3905,136.67,136.63,0.05578681]
[1725042601878,3.6597,136.64,136.63,0.05578681]
[1725042602078,3.61622595,136.68,136.63,0.05578681]
[1725042602079,2.8068,136.7,136.63,0.05578681]
[1725042602476,6.44828353,136.7,136.63,0.05578681]
[1725042602682,35.26,136.69,136.63,0.05578681]
[1725042602884,35.26,136.65,136.54,35.26]
[1725042603382,35.26,136.67,136.56,35.26]
[1725042603779,3.6601,136.63,136.57,3.6616]
[1725042603980,39.01942531,136.63,136.45,3.60487834]
[1725042604186,35.26,136.68,136.49,35.26]
[1725042604187,35.26,136.61,136.49,35.26]
[1725042604492,35.26,136.66,136.55,35.26]
[1725042604674,35.26,136.66,136.56,3.67882081]
[1725042604884,1.437,136.67,136.58,35.26]
[1725042605087,0.04992253,136.64,136.61,0.05108878]
[1725042605331,0.05583969,136.64,136.63,3.6598]
[1725042605684,0.05583969,136.64,136.61,0.04640679]
[1725042606381,3.76751707,136.64,136.61,0.04640679]
[1725042606599,0.05583969,136.64,136.61,0.04640679]
[1725042606802,35.26,136.62,136.48,36.4323]
[1725042607004,35.26,136.58,136.48,35.26]
[1725042607189,35.26,136.56,136.45,35.26]
[1725042607494,35.26,136.52,136.4,38.84835733]
[1725042607680,35.26,136.52,136.4,35.26]
[1725042607883,0.05541567,136.47,136.45,0.04843347]
[1725042608509,0.04649545,136.47,136.45,0.04843347]
[1725042609391,0.04649545,136.47,136.46,3.6646]
[1725042610002,0.04649545,136.47,136.45,0.04843347]
[1725042610682,42.22649545,136.47,136.33,42.18]
[1725042610894,42.18,136.42,136.3,42.18]
[1725042611085,42.18,136.47,136.35,42.18]
[1725042611388,42.18,136.47,136.36,3.6868178]
[1725042611579,3.6649,136.45,136.4,0.04804366]
[1725042611783,0.05062596,136.43,136.4,0.04804366]
[1725042613787,42.18,136.54,136.42,42.18]
[1725042613982,4.2732,136.56,136.44,42.18]
[1725042614180,42.18,136.54,136.42,42.18]
[1725042614386,42.18,136.5,136.37,42.18]
[1725042614714,42.18,136.47,136.36,3.66111963]
[1725042614887,0.05462271,136.45,136.42,0.05079459]
[1725042615392,42.23462271,136.45,136.42,0.05079459]
[1725042615891,0.05462271,136.45,136.42,0.05079459]
[1725042616491,0.05462271,136.45,136.44,3.6651]
[1725042617086,0.05462271,136.45,136.42,0.05079459]
[1725042617782,0.05462271,136.45,136.35,42.18]
[1725042617983,42.18,136.46,136.35,42.18]
[1725042618190,44.9431,136.49,136.35,42.18]
[1725042618601,44.9431,136.49,136.37,42.18]
[1725042618784,0.05070481,136.44,136.42,0.05181674]
[1725042618981,0.0561542,136.44,136.35,42.18]
[1725042619185,3.73873612,136.43,136.32,42.18]
[1725042619394,3.6668,136.38,136.33,3.668]
[1725042619596,1.4234,136.42,136.3,42.18]
[1725042619788,1.4234,136.42,136.35,42.18]
[1725042619997,1.4234,136.42,136.39,3.6663]
[1725042620188,0.04889647,136.4,136.37,0.04619081]
[1725042620392,1.4234,136.42,136.37,0.05028364]
[1725042620690,0.05419186,136.4,136.37,0.05028364]
[1725042624295,0.05419186,136.4,136.37,3.71728364]
[1725042624491,0.05419186,136.4,136.37,0.05028364]
[1725042624999,0.05419186,136.4,136.39,3.6665]
[1725042625487,0.05419186,136.4,136.37,0.05028364]
[1725042626001,3.6665,136.39,136.34,3.6676]
[1725042626299,1.4234,136.38,136.28,42.18]
[1725042626499,42.18,136.36,136.0,36.77]
[1725042626737,42.18,136.34,136.22,42.18]
[1725042626898,42.18,136.34,136.28,3.6692]
[1725042626899,0.04869939,136.29,136.28,3.6692]
[1725042627093,0.05139369,136.3,136.27,0.04971183]
[1725042627400,0.05139369,136.3,136.28,42.18]
[1725042627603,0.05139369,136.3,136.29,3.6691]
[1725042627799,1.4295,136.35,136.28,42.18]
[1725042628101,1.4295,136.35,136.25,42.18]
[1725042628702,0.04742011,136.31,136.29,42.23507368]
[1725042629012,0.04742011,136.31,136.29,0.05234964]
[1725042629802,3.71612011,136.31,136.29,0.05234964]
[1725042630000,1.4252,136.3,136.19,45.89085296]
[1725042630201,5.0685629,136.3,136.19,42.18]
[1725042630497,1.4252,136.3,136.22,42.18]
[1725042630800,3.6694,136.29,136.24,3.6704]
[1725042631000,42.23467861,136.28,136.16,70.04705678]
[1725042631193,42.18,136.25,136.16,70.04705678]
[1725042631419,42.18,136.25,136.12,45.93633539]
[1725042631800,42.18,136.25,136.12,3.75633539]
[1725042632007,42.18,136.25,136.06,0.9333]
[1725042632008,0.05632063,136.2,136.17,0.0516091]
[1725042632215,36.6131,136.22,136.11,35.27]
[1725042632512,0.05507697,136.2,136.15,0.05499266]
[1725042632713,1.3431,136.22,136.15,0.05499266]
[1725042632714,0.04885932,136.19,136.17,35.27]
[1725042632916,0.04885932,136.19,136.17,0.05345564]
[1725042633515,0.04885932,136.19,136.18,3.6721]
[1725042634208,1.3825,136.27,136.18,35.27]
[1725042634407,2.7917,136.33,136.25,35.27]
[1725042634908,35.27,136.31,136.19,0.7325]
[1725042635123,0.05251552,136.26,136.24,3.71750591]
[1725042635305,0.05251552,136.26,136.24,0.04710591]
[1725042635615,0.05251552,136.26,136.25,3.6702]
[1725042635810,0.05251552,136.26,136.24,0.04710591]
[1725042636002,3.6702,136.25,136.24,0.04710591]
[1725042636208,42.28,136.26,136.14,42.28]
[1725042636403,42.28,136.26,135.93,90.04155493]
[1725042636404,43.5799,136.24,135.95,346.30509631]
[1725042636717,42.28,136.21,136.09,45.92399699]
[1725042636931,42.28,136.21,136.05,1.1738]
[1725042636932,3.72323026,136.2,136.05,1.1738]
[1725042637119,43.5799,136.24,136.11,42.28]
[1725042637316,3.5999785,136.23,136.11,45.96654819]
[1725042637519,0.0529615,136.19,136.16,0.05174624]
[1725042637716,0.05100477,136.19,136.16,0.05471413]
[1725042638313,0.05100477,136.19,136.17,3.6723]
[1725042638903,0.05100477,136.19,136.18,3.6721]
[1725042639114,0.05100477,136.19,136.18,45.9521]
[1725042639413,1.4394,136.25,136.18,42.28]
[1725042639814,3.671,136.23,136.18,3.6719]
[1725042640009,3.69650304,136.22,136.11,42.28]
[1725042640205,0.04642126,136.18,136.15,0.05372165]
[1725042640414,3.72823397,136.18,136.15,0.05266003]
[1725042640804,0.05603397,136.18,136.15,3.72536003]
[1725042641006,0.05603397,136.18,136.15,0.05266003]
[1725042641516,3.6724,136.17,136.15,0.05266003]
[1725042641719,5.0425,136.17,136.15,0.05266003]
[1725042641911,1.3701,136.17,136.15,0.05266003]
[1725042642506,0.05603397,136.18,136.15,0.05266003]
[1725042642715,0.05603397,136.18,136.08,42.28]
[1725042642912,1.4131,136.2,136.08,42.28]
[1725042643309,42.28,136.19,136.06,42.28]
[1725042643513,42.28,136.19,136.1,3.6741]
[1725042643720,0.05145624,136.16,136.13,0.04722939]
[1725042644620,3.6729,136.15,136.13,0.04722939]
[1725042645211,0.05145624,136.16,136.13,0.04722939]
[1725042645830,3.6732,136.14,136.13,0.04722939]
[1725042646414,3.6732,136.14,136.02,1.4823]
[1725042646415,42.28,136.16,136.03,42.28]
[1725042646611,42.28,136.19,136.05,42.28]
[1725042646809,42.28,136.19,136.08,42.28]
[1725042647123,3.6735,136.13,136.05,42.28]
[1725042647436,3.6732,136.15,136.05,42.28]
[1725042647723,0.05536179,136.11,136.1,42.28]
[1725042647912,0.05153832,136.12,136.11,3.674]
[1725042648140,1.4131,136.2,136.04,7.3514]
[1725042648314,0.04958919,136.13,136.11,0.04623072]
[1725042648508,0.04640811,136.13,136.12,3.6736]
[1725042650121,0.04640811,136.13,136.11,0.05215759]
[1725042651621,3.72000811,136.13,136.11,0.05215759]
[1725042651824,0.04640811,136.13,136.11,0.05215759]
[1725042652522,0.04640811,136.13,136.11,3.72605759]
[1725042652722,0.04640811,136.13,136.11,0.05215759]
[1725042653023,0.04640811,136.13,136.07,3.6751]
[1725042653209,1.3595,136.14,136.03,1.0922]
[1725042653413,1.3101,136.13,136.05,42.28]
[1725042653627,3.6741,136.11,136.05,42.28]
[1725042654017,0.05114649,136.09,136.07,0.05000579]
[1725042654218,0.05114649,136.09,136.08,3.6748]
[1725042659524,0.05114649,136.09,136.07,0.05000579]
[1725042659923,1.42604649,136.09,136.07,0.05000579]
[1725042660718,35.24,136.11,136.07,0.05000579]
[1725042660925,35.24,136.08,135.95,35.24]
[1725042661119,3.67256943,136.07,135.95,35.24]
[1725042661325,35.24,136.08,135.95,35.24]
[1725042661629,35.24,136.08,135.94,0.5424]
[1725042661630,35.24,136.08,135.97,35.24]
[1725042661828,3.59099761,136.1,135.99,35.24]
[1725042662025,0.04769377,136.06,136.03,0.05490602]
[1725042662275,0.05167197,136.06,136.03,35.29020122]
[1725042662435,0.05167197,136.06,136.05,3.6756]
[1725042663333,0.05167197,136.06,136.04,3.6759]
[1725042663829,0.05167197,136.06,136.03,0.05020122]
[1725042664234,27.93067197,136.09,136.03,0.05020122]
[1725042664533,35.24,136.11,136.03,0.05020122]
[1725042664733,1.3547,136.12,136.03,35.24]
[1725042665035,35.24,136.16,136.0,35.24]
[1725042665036,38.87949977,136.16,136.05,35.24]
[1725042665336,38.87949977,136.16,136.01,1.6866]
[1725042665337,0.05250478,136.12,136.09,0.05233782]
[1725042665630,0.04988995,136.12,136.11,3.674]
[1725042666025,0.04988995,136.12,136.09,0.04764264]
[1725042666440,3.72378995,136.12,136.09,0.04764264]
[1725042666633,0.04988995,136.12,136.09,0.04764264]
[1725042667231,0.04988995,136.12,136.1,3.6743]
[1725042667632,0.04988995,136.12,136.09,0.04764264]
[1725042667832,0.04988995,136.12,136.11,3.674]
[1725042668338,1.3985,136.2,136.11,42.34]
[1725042668539,5.0703,136.2,136.11,42.34]
[1725042668732,2.778,136.23,136.14,42.34]
[1725042669227,3.72084672,136.2,136.17,0.0522439]
[1725042669431,42.38904672,136.2,136.17,0.0522439]
[1725042670426,42.34,136.2,136.08,1.3183]
[1725042670637,42.34,136.15,136.02,42.34]
[1725042670837,3.6743,136.1,136.02,42.34]
[1725042671040,2.7341,136.14,136.03,3.76443049]
[1725042671239,42.34,136.13,136.03,3.76443049]
[1725042671437,0.05606914,136.09,136.07,0.05439771]
[1725042671925,3.73066914,136.09,136.07,0.05439771]
[1725042672235,2.7341,136.14,136.07,0.05439771]
[1725042672236,35.03506914,136.1,136.07,0.05439771]
[1725042672442,42.34,136.1,135.95,42.7485]
[1725042672740,42.34,136.08,135.96,3.65315025]
[1725042672943,45.95018065,136.08,135.96,3.65315025]
[1725042673137,3.6761,136.04,136.0,3.6768]
[1725042673642,0.05624175,136.03,136.01,0.05578611]
[1725042673844,0.05547081,136.03,136.01,0.05578611]
[1725042674136,0.05547081,136.03,135.89,7.3599]
[1725042674344,42.34,136.03,135.9,45.1051]
[1725042674773,34.979,136.03,135.96,3.6779]
[1725042675444,31.34782348,136.03,135.98,0.05583622]
[1725042675631,42.34,136.01,135.9,45.1051]
[1725042675834,2.6512,136.04,135.92,42.34]
[1725042676236,3.6766,136.02,135.97,0.05432284]
[1725042676432,0.04863045,136.01,135.97,0.05432284]
[1725042676641,0.04863045,136.01,135.98,0.05025025]
[1725042676945,3.72533045,136.01,135.98,0.05025025]
[1725042677346,0.04863045,136.01,135.98,0.05025025]
[1725042678137,3.6763,136.03,135.99,3.677]
[1725042678339,46.09827903,136.07,135.98,0.05025025]
[1725042678533,42.34,136.09,135.96,3.67666523]
[1725042678743,3.6751,136.07,136.02,3.6764]
[1725042678949,42.34,136.09,135.97,3.59836009]
[1725042678950,45.92769883,136.09,135.97,3.59836009]
[1725042679146,0.04760493,136.04,136.02,0.05310234]
[1725042679447,0.05326592,136.04,136.02,0.05310234]
[1725042680449,0.05326592,136.04,136.03,3.6762]
[1725042681852,42.34,136.14,136.1,3.6743]
[1725042682171,42.34,136.14,136.0,0.5193]
[1725042682172,2.796,136.15,136.04,42.34]
[1725042682344,42.34,136.21,136.06,42.34]
[1725042682550,3.6719,136.19,136.09,42.34]
[1725042682747,0.04777527,136.15,136.13,0.05437123]
[1725042683551,0.04777527,136.15,136.14,3.6732]
[1725042683843,42.34,136.23,136.13,0.05437123]
[1725042684151,3.6712,136.22,136.11,42.34]
[1725042684538,42.34,136.23,136.2,3.6715]
[1725042684741,46.5677,136.26,136.13,42.34]
[1725042684947,46.5677,136.26,136.21,3.6711]
[1725042685341,3.71901637,136.25,136.21,3.6711]
[1725042685543,0.04871637,136.25,136.22,3.6709]
[1725042685746,0.04871637,136.25,136.2,0.0515859]
[1725042688054,0.04871637,136.25,136.24,3.6705]
[1725042689756,0.04871637,136.25,136.23,0.05360876]
[1725042689959,3.68890547,136.25,136.14,42.34]
[1725042690256,3.6713,136.21,136.11,42.34]
[1725042690451,3.6713,136.21,136.12,3.58761008]
[1725042690648,42.34,136.24,136.11,42.34]
[1725042691047,0.0510859,136.19,136.18,3.6719]
[1725042691254,0.04760147,136.2,136.17,0.05280687]
[1725042691651,0.04760147,136.2,136.19,3.6718]
[1725042692647,0.04760147,136.2,136.17,0.05280687]
[1725042692648,3.6699,136.27,136.16,45.96467899]
[1725042692847,3.6699,136.27,136.18,42.34]
[1725042693048,42.34,136.29,136.22,3.671]
[1725042693458,42.34,136.29,136.15,42.34]
[1725042693666,42.34,136.29,136.22,3.671]
[1725042693667,0.05205567,136.23,136.22,3.671]
[1725042693854,0.04667956,136.24,136.21,0.05338357]
[1725042694360,3.7244091,136.35,136.22,42.34]
[1725042694552,42.34,136.38,136.26,42.34]
[1725042694754,3.668,136.34,136.3,3.6686]
[1725042695256,0.05601681,136.33,136.31,0.0470074]
[1725042695868,0.05601681,136.33,136.32,3.6682]
[1725042701171,0.05601681,136.33,136.31,0.0470074]
[1725042701172,3.75368026,136.44,136.37,3.6668]
[1725042701470,3.6664,136.4,136.31,42.34]
[1725042701671,42.34,136.42,136.29,42.34]
[1725042702059,0.05575067,136.37,136.34,0.05225462]
[1725042702764,0.05575067,136.37,136.36,3.6673]
[1725042702968,0.05575067,136.37,136.34,0.05225462]
[1725042703164,0.05575067,136.37,136.36,3.6673]
[1725042706276,4.0452,136.46,136.41,3.6659]
[1725042706474,7.72262049,136.46,136.35,42.34]
[1725042706780,42.34,136.45,136.33,42.34]
[1725042706989,42.34,136.45,136.37,3.6668]
[1725042707288,0.05113495,136.42,136.4,0.05603237]
[1725042707587,3.6661,136.41,136.4,0.05603237]
[1725042708280,3.6664,136.4,136.33,42.34]
[1725042708584,42.34,136.42,136.31,45.1689]
[1725042709087,3.667,136.38,136.34,3.6676]
[1725042709383,0.05054944,136.37,136.35,0.04862919]
[1725042709575,0.04980221,136.37,136.36,3.6671]
[1725042710174,0.04980221,136.37,136.35,0.04862919]
[1725042710774,45.98505762,136.38,136.26,42.34]
[1725042711080,42.34,136.41,136.28,42.34]
[1725042711279,3.6668,136.38,136.35,3.6675]
[1725042711481,3.62305748,136.38,136.28,46.06755817]
[1725042711678,0.05078671,136.34,136.32,0.05502659]
[1725042711897,3.6662,136.4,136.31,42.34]
[1725042712084,3.6662,136.4,136.32,0.04851166]
[1725042712290,0.04821258,136.37,136.32,0.04851166]
[1725042712492,0.04821258,136.37,136.36,3.667]
[1725042712982,0.04821258,136.37,136.35,0.04935074]
[1725042713195,42.34,136.36,136.25,42.34]
[1725042713573,42.34,136.34,136.24,1.3368]
[1725042714197,0.0502705,136.3,136.28,0.05259354]
[1725042714784,3.7192705,136.3,136.28,0.05259354]
[1725042715685,0.0502705,136.3,136.28,0.05259354]
[1725042716180,0.0502705,136.3,136.28,3.72179354]
[1725042716783,0.0502705,136.3,136.28,0.05259354]
[1725042716984,45.98636606,136.32,136.21,1.3399]
[1725042717884,0.0502813,136.28,136.25,0.04702905]
[1725042719617,0.0502813,136.28,136.27,3.6697]
[1725042719792,1.4097,136.37,136.27,42.34]
[1725042719989,42.34,136.42,136.29,42.34]
[1725042720291,45.1153,136.42,136.29,42.34]
[1725042720586,45.1153,136.42,136.28,3.59882646]
[1725042720587,42.34,136.4,136.28,3.59882646]
[1725042720793,42.34,136.4,136.33,0.05438122]
[1725042720794,0.04968601,136.35,136.33,0.05438122]
[1725042720991,0.05335652,136.35,136.34,3.6678]
[1725042721991,0.05335652,136.35,136.34,46.0078]
[1725042722192,3.60506486,136.45,136.36,42.34]
[1725042722385,1.3204,136.46,136.36,42.34]
[1725042722680,1.3204,136.46,136.42,3.6654]
[1725042723083,0.054531,136.45,136.43,0.05350764]
[1725042723780,0.054531,136.45,136.44,3.6651]
[1725042724186,2.7058,136.52,136.43,42.34]
[1725042724388,2.7058,136.52,136.46,42.34]
[1725042724590,2.7058,136.52,136.4,42.34]
[1725042724887,47.39291827,136.55,136.47,3.6641]
[1725042725088,47.39291827,136.55,136.44,3.67055289]
[1725042725386,0.05128509,136.51,136.48,0.04670423]
[1725042726692,0.05128509,136.51,136.48,42.38670423]
[1725042726896,0.05128509,136.51,136.5,3.6635]
[1725042727292,42.34,136.59,136.48,42.34]
[1725042727786,52.4229,136.63,136.5,42.34]
[1725042728106,3.63819251,136.62,136.5,42.34]
[1725042728293,0.05633382,136.57,136.55,0.04768668]
[1725042728493,0.04875569,136.57,136.55,0.05224982]
[1725042728789,0.04875569,136.57,136.56,3.6619]
[1725042729088,0.04875569,136.57,136.55,0.05224982]
[1725042729896,0.04875569,136.57,136.56,3.6619]
[1725042730199,42.34,136.65,136.55,0.05224982]
[1725042730393,42.34,136.65,136.52,42.34]
[1725042730782,3.6598,136.64,136.54,42.34]
[1725042730980,3.6598,136.64,136.58,0.05063053]
[1725042730981,0.04697772,136.6,136.58,0.05063053]
[1725042732289,0.04697772,136.6,136.59,3.6611]
[1725042732482,0.04697772,136.6,136.58,0.05063053]
[1725042733683,0.04697772,136.6,136.49,42.34]
[1725042733886,42.34,136.61,136.49,42.34]
[1725042734083,3.6617,136.57,136.53,3.6625]
[1725042734285,42.34,136.61,136.49,42.34]
[1725042734797,0.05578512,136.56,136.54,0.05312332]
[1725042735093,42.34,136.57,136.45,45.96611283]
[1725042735289,2.7159,136.58,136.42,1.3779]
[1725042735290,42.34,136.54,136.42,43.7179]
[1725042735685,3.6628,136.53,136.49,3.6636]
[1725042735898,0.04965449,136.52,136.45,46.09257269]
[1725042736196,42.34,136.57,136.47,0.05136336]
[1725042736197,0.05405103,136.5,136.47,0.05136336]
[1725042736496,0.05260072,136.5,136.47,0.05549297]
[1725042737885,0.05260072,136.5,136.49,3.6638]
[1725042738886,0.05260072,136.5,136.47,0.05549297]
[1725042739496,46.08891029,136.5,136.38,42.34]
[1725042739696,42.34,136.48,136.38,42.34]
[1725042739992,42.34,136.48,136.37,3.65919716]
[1725042740195,42.34,136.48,136.35,42.34]
[1725042740393,2.7371,136.49,136.38,42.34]
[1725042740589,2.7371,136.49,136.33,49.6762]
[1725042740590,0.05282696,136.45,136.42,0.0563152]
[1725042741397,0.05282696,136.45,136.43,3.6654]
[1725042741700,0.05282696,136.45,136.42,0.0563152]
[1725042742091,0.05282696,136.45,136.44,3.6651]
[1725042742297,0.05282696,136.45,136.42,0.0563152]
[1725042742485,3.71792696,136.45,136.42,0.0563152]
[1725042742734,0.05282696,136.45,136.42,0.0563152]
[1725042743204,3.6654,136.43,136.34,6.41386775]
[1725042743402,45.99867839,136.46,136.34,6.41386775]
[1725042743601,42.34,136.46,136.34,6.41386775]
[1725042743900,42.34,136.46,136.36,42.34]
[1725042744097,3.6654,136.43,136.39,3.6665]
[1725042744305,0.05389785,136.42,136.4,0.05067277]
[1725042744686,0.05389785,136.42,136.31,42.34]
[1725042744893,42.34,136.44,136.31,42.34]
[1725042745091,3.6665,136.39,136.35,3.6674]
[1725042745294,42.34,136.41,136.28,42.8631]
[1725042745490,1.4217,136.4,136.28,42.8631]
[1725042745696,0.05524008,136.35,136.34,3.6678]
[1725042745899,0.05361919,136.36,136.33,0.05258114]
[1725042746294,3.6678,136.34,136.33,0.05258114]
[1725042746596,0.05361919,136.36,136.33,0.05258114]
[1725042747595,3.6678,136.35,136.33,0.05258114]
[1725042747892,0.05361919,136.36,136.33,0.05258114]
[1725042748088,42.39361919,136.36,136.24,42.34]
[1725042748292,42.34,136.36,136.24,42.34]
[1725042748589,3.6679,136.34,136.29,3.669]
[1725042749006,3.6679,136.34,136.24,42.34]
[1725042749205,42.34,136.36,136.28,0.04863825]
[1725042749396,0.052428,136.33,136.28,0.04863825]
[1725042750037,0.052428,136.33,136.29,42.34]
[1725042750302,0.052428,136.33,136.32,3.6683]
[1725042751401,0.052428,136.33,136.31,3.72241718]
[1725042751602,0.052428,136.33,136.23,45.95488986]
[1725042751809,42.34,136.33,136.21,42.34]